fUST/lending_fUST_20250313
["ID","MTS","AMOUNT","RATE_DAILY","PERIOD"]
[356050733,1741852251664,-2110.0,0.00013887,2]
[356050734,1741852251674,-161.91474531,0.00013887,2]
[356050735,1741852251686,-150.32,0.00013887,2]
[356050736,1741852251696,-205.66009705,0.00013888,2]
[356050737,1741852251706,-150.32,0.00013888,2]
[356050738,1741852251718,-500.0,0.00013888,2]
[356050739,1741852251728,-154.58794956,0.00013888,2]
[356050740,1741852251739,-693.8510917,0.00013919,2]
[356050741,1741852251749,-465.9964719,0.00013923,2]
[356050742,1741852251758,-527.0833214,0.00013972,2]
[356050743,1741852251768,-500.0,0.00013972,2]
[356050744,1741852251778,-474.77875957,0.00013972,2]
[356050745,1741852251788,-259.29117922,0.00013972,2]
[356050746,1741852251798,-500.0,0.00013972,2]
[356050747,1741852251808,-506.97303431,0.00013972,2]
[356050748,1741852251818,-500.0,0.00013972,2]
[356050749,1741852251828,-500.0,0.00013972,2]
[356050750,1741852251838,-500.0,0.00013972,2]
[356050751,1741852251848,-500.0,0.00013972,2]
[356050752,1741852251858,-500.0,0.00013972,2]
[356050753,1741852251868,-500.0,0.00013972,2]
[356050754,1741852251878,-500.0,0.00013972,2]
[356050755,1741852251888,-562.64,0.00013972,2]
[356050756,1741852251898,-500.0,0.00013972,2]
[356050757,1741852251908,-500.0,0.00013972,2]
[356050758,1741852251918,-500.0,0.00013972,2]
[356050759,1741852251928,-500.0,0.00013972,2]
[356050760,1741852251944,-500.0,0.00013972,2]
[356050761,1741852251954,-500.0,0.00013972,2]
[356050762,1741852251964,-500.0,0.00013972,2]
[356050763,1741852251974,-500.0,0.00013972,2]
[356050764,1741852251984,-500.0,0.00013972,2]
[356050765,1741852251994,-603.01,0.00013972,2]
[356050766,1741852252004,-500.0,0.00013972,2]
[356050767,1741852252013,-1184.1,0.00013972,2]
[356050768,1741852252022,-500.0,0.00013972,2]
[356050769,1741852252032,-500.0,0.00013972,2]
[356050770,1741852252042,-500.0,0.00013972,2]
[356050771,1741852252051,-648.04,0.00013972,2]
[356050772,1741852252061,-1198.64,0.00013972,2]
[356050773,1741852252070,-500.0,0.00013972,2]
[356050774,1741852252079,-500.0,0.00013972,2]
[356050775,1741852252089,-500.0,0.00013972,2]
[356050776,1741852252098,-500.0,0.00013972,2]
[356050777,1741852252108,-500.0,0.00013972,2]
[356050778,1741852252118,-500.0,0.00013972,2]
[356050779,1741852252127,-500.0,0.00013972,2]
[356050780,1741852252137,-431.79974293,0.00013972,2]
[356050781,1741852252147,-504.46621813,0.00013972,2]
[356050782,1741852252156,-500.0,0.00013972,2]
[356050783,1741852252166,-500.0,0.00013972,2]
[356050784,1741852252175,-500.0,0.00013972,2]
[356050785,1741852252186,-500.0,0.00013972,2]
[356050786,1741852252196,-500.0,0.00013972,2]
[356050787,1741852252206,-500.0,0.00013972,2]
[356050788,1741852252215,-500.0,0.00013972,2]
[356050789,1741852252225,-500.0,0.00013972,2]
[356050790,1741852252235,-508.09682627,0.00013972,2]
[356050791,1741852252245,-500.0,0.00013972,2]
[356050792,1741852252255,-500.0,0.00013972,2]
[356050793,1741852252264,-500.0,0.00013972,2]
[356050794,1741852252274,-704.67,0.00013972,2]
[356050795,1741852252284,-500.0,0.00013972,2]
[356050796,1741852252294,-500.0,0.00013972,2]
[356050797,1741852252304,-482.55810469,0.00013972,2]
[356050798,1741852253301,-1770.23747705,0.00010959,2]
[356050799,1741852264997,-353.48365075,0.00010959,2]
[356050800,1741852273928,-500.0,0.00010959,2]
[356050801,1741852285408,-500.0,0.00010959,2]
[356050802,1741852290966,-1876.2788722,0.00010959,2]
[356050803,1741852290993,-1429.61,0.00010959,2]
[356050804,1741852291015,-1191.35,0.00010959,2]
[356050805,1741852291038,-992.79,0.00010959,2]
[356050806,1741852291061,-992.79,0.00010959,2]
[356050807,1741852294824,661.86,0.00010959,2]
[356050808,1741852305569,551.55,0.00010959,2]
[356050809,1741852316287,459.62,0.00010959,2]
[356050810,1741852327013,459.62,0.00010959,2]
[356050811,1741852337817,306.42,0.00010959,2]
[356050812,1741852348388,255.35,0.00010959,2]
[356050813,1741852358905,212.79,0.00010959,2]
[356050814,1741852369410,177.32,0.00010959,2]
[356050815,1741852379894,886.64,0.00010959,2]
[356050816,1741852436175,229.0,0.00018,120]
[356050817,1741852501789,-330.34198109,0.00012699,2]
[356050819,1741852555350,-150.0,0.00012568,2]
[356050820,1741852563776,-232.47022686,0.00012504,2]
[356050822,1741852625083,-150.16256607,0.00012503,2]
[356050823,1741852699083,204.960965,0.00011717,61]
[356050824,1741852699277,204.960965,0.00011717,120]
[356050825,1741852699543,-191.31322195,0.00011717,2]
[356050826,1741852737058,-13.64774305,0.00011717,2]
[356050827,1741852737081,-5000.0,0.00012378,2]
[356050828,1741852737106,-160.39242309,0.00012503,2]
[356050829,1741852737130,-300.0,0.00012503,2]
[356050830,1741852737158,-24667.52977314,0.00012504,2]
[356050831,1741852737184,-28.892689,0.00012568,2]
[356050832,1741852737206,-9470.80927881,0.00012699,2]
[356050833,1741852737228,-1697.80155534,0.000129,2]
[356050835,1741853095150,-162.95480447,0.00012219,2]
[356050839,1741853250375,-490.8767407,0.00011676,2]
[356050841,1741853340875,-219.59434319,0.00011639,2]
[356050842,1741853372138,-30.40565681,0.00011639,2]
[356050843,1741853372161,-2298.36427239,0.00012096,2]
[356050934,1741853443497,-371.7,0.00012096,2]
[356050939,1741853446620,-2329.93572761,0.00012096,2]
[356050940,1741853446630,-300.0,0.00012218,2]
[356050941,1741853446639,-6637.16248866,0.00012219,2]
[356050942,1741853703852,-300.0,0.00011354,2]
[356050943,1741853706450,-989.5683232,0.00011354,2]
[356050944,1741853740573,-191.30851071,0.00011354,2]
[356050952,1741853764817,-300.0,0.00011354,2]
[356050975,1741853795319,-47.70118513,0.00011354,2]
[356050976,1741853795342,-500.8106039,0.00011357,2]
[356050977,1741853824110,-47.70118513,0.00011357,2]
[356050978,1741853824135,-252.29881487,0.00011357,2]
[356050979,1741853825991,-247.70118513,0.00011357,2]
[356050980,1741853885373,-300.0,0.00011357,2]
[356050983,1741853906785,-258.95103522,0.0001135,7]
[356050984,1741853922916,-220.91574313,0.00011349,2]
[356050985,1741853943510,-300.0,0.00011349,2]
[356050986,1741854004784,-300.0,0.00011349,2]
[356050987,1741854017530,-279.08425687,0.00011349,2]
[356050988,1741854017554,-306.16079073,0.00011349,2]
[356050989,1741854021048,-193.83920927,0.00011349,2]
[356050990,1741854029137,-496.99549564,0.00011016,2]
[356050991,1741854034738,-200.0,0.00011015,2]
[356050992,1741854039363,1876.07975251,0.00011,2]
[356050993,1741854062940,-300.0,0.00011015,2]
[356051000,1741854126410,-210.47108389,0.00011015,2]
[356051001,1741854184330,-150.0,0.00011015,2]
[356051003,1741854245396,-254.33352981,0.00011015,2]
[356051004,1741854261847,254.33352981,0.00011,2]
[356051005,1741854295049,9516.88725132,0.00011,2]
[356051006,1741854302719,56158.51617783,0.00011,2]
[356051007,1741854308562,127394.46650158,0.00011,2]
[356051008,1741854308855,-300.0,0.00011015,2]
[356051010,1741854363463,-300.0,0.00011015,2]
[356051011,1741854374996,150.0,0.00011,2]
[356051012,1741854382717,547.02,0.00010959,2]
[356051013,1741854423812,-260.47108389,0.00011015,2]
[356051014,1741854438246,-170.24743234,0.00010905,2]
[356051015,1741854444142,-169.63447037,0.00010796,2]
[356051023,1741854573193,-1816.8204187,0.00010362,2]
[356051024,1741854573214,-0.61296197,0.00010796,2]
[356051025,1741854573237,-690.22365155,0.00010905,2]
[356051026,1741854573260,-500.0,0.00011015,2]
[356051027,1741854573282,-500.0,0.00011015,2]
[356051028,1741854573304,-500.0,0.00011015,2]
[356051029,1741854573327,-500.0,0.00011015,2]
[356051030,1741854573350,-500.0,0.00011015,2]
[356051031,1741854573372,-302.03383547,0.00011015,2]
[356051032,1741854573395,-300.0,0.00011015,2]
[356051033,1741854573416,-4708.23433162,0.00011016,2]
[356051127,1741854635368,-169.63447037,0.00010259,2]
[356051128,1741854635378,-300.0,0.00011015,2]
[356051129,1741854635387,-56727.62511658,0.00011016,2]
[356051188,1741854640944,-0.03480283,0.00011016,2]
[356051218,1741854643824,-1500.0,0.00011016,2]
[356051219,1741854643921,-2473.46607324,0.00011016,2]
[356051220,1741854643968,-1047.9683,0.00011016,2]
[356051249,1741854646663,-44384.82593289,0.00011016,2]
[356051251,1741854646677,-12264.04896478,0.0001135,7]
[356051252,1741854646687,-24900.0,0.00011358,2]
[356051254,1741854646696,-585.2450476,0.00011397,2]
[356051256,1741854646705,-184.5679175,0.00011469,2]
[356051258,1741854646715,-184.567916,0.00011525,2]
[356051260,1741854646725,-250.0,0.00011602,2]
[356051261,1741854646734,-2076.29584612,0.00011695,2]
[356051263,1741854646744,-10000.0,0.00011695,2]
[356051265,1741854646754,-756.67500408,0.00011834,2]
[356051266,1741854646763,-500.0,0.00012055,2]
[356051267,1741854646772,-420.0,0.00012104,2]
[356051269,1741854646782,-155.4628988,0.00012448,2]
[356051271,1741854646791,-559.6044626,0.00012448,2]
[356051273,1741854646800,-1000.0,0.00012487,2]
[356051275,1741854646809,-1000.0,0.00012487,2]
[356051277,1741854646819,-1000.0,0.00012487,2]
[356051279,1741854646829,-1000.0,0.00012487,2]
[356051280,1741854646838,-1000.0,0.00012487,2]
[356051282,1741854646847,-1000.0,0.00012487,2]
[356051283,1741854646856,-1032.37867105,0.00012487,2]
[356051285,1741854646867,-178.892689,0.00013196,2]
[356051287,1741854646877,-587.0,0.000133,2]
[356051288,1741854646886,-202.47143191,0.00013407,2]
[356051289,1741854646895,-202.47143188,0.00013455,2]
[356051290,1741854646905,-1000.0,0.00013488,2]
[356051291,1741854646914,-190432.25221477,0.00013496,2]
[356051292,1741854650969,-300.0,0.00010959,2]
[356051295,1741854749040,-300.0,0.00010849,2]
[356051299,1741855603135,-2118.42746878,0.00010536,2]
[356051310,1741855820821,-170.24743234,0.00010327,2]
[356051311,1741855820844,-372.47256766,0.00010431,2]
[356051312,1741855824892,-748.3,0.00010431,2]
[356051313,1741855827167,-531.54101864,0.00010431,2]
[356051375,1741855836952,-5000.0,0.00010849,2]
[356051393,1741855839943,-296.03,0.00010959,2]
[356051394,1741855839954,-246.69,0.00010959,2]
[356051395,1741855839965,-205.58,0.00010959,2]
[356051396,1741855839975,-171.31,0.00010959,2]
[356051397,1741855839986,-241.13506344,0.00011924,2]
[356051398,1741855839996,-300.0,0.00012023,2]
[356051399,1741855840006,-500.0,0.00012023,2]
[356051400,1741855840016,-500.0,0.00012023,2]
[356051401,1741855840027,-500.0,0.00012023,2]
[356051402,1741855840036,-500.0,0.00012023,2]
[356051403,1741855840047,-371.97574609,0.00012023,2]
[356051404,1741855840057,-293.07519047,0.00012023,2]
[356051405,1741855840326,-206.59990355,0.00012023,2]
[356051406,1741855840336,-500.0,0.00012023,2]
[356051407,1741855840346,-218.75922137,0.00012023,2]
[356051408,1741855840357,-500.0,0.00012023,2]
[356051409,1741855840367,-500.0,0.00012023,2]
[356051410,1741855840377,-430.20338355,0.00012023,2]
[356051411,1741855840387,-5256.58554155,0.00012025,2]
[356051412,1741855840398,-419.0968278,0.00012025,2]
[356051423,1741855842812,-4324.31763065,0.00012025,2]
[356051424,1741855842823,-500.0,0.00012055,2]
[356051425,1741855842833,-262.27469617,0.0001252,2]
[356051426,1741855842843,-24900.0,0.00012521,2]
[356051427,1741855842852,-215.9434208,0.00013,2]
[356051428,1741855842862,-420.0,0.00013199,2]
[356051429,1741855842875,-186.8724011,0.000132,2]
[356051430,1741855842884,-756.67500409,0.00013346,2]
[356051431,1741855842894,-500.0,0.00013439,2]
[356051432,1741855842904,-540.39910209,0.00013489,2]
[356051433,1741855842914,-571.01087781,0.00013496,2]
[356051434,1741855842944,-8735.55797217,0.00013496,2]
[356051435,1741855843051,-235.38082987,0.00013496,2]
[356051442,1741855845783,-414.8318,0.00010959,2]
[356051443,1741855845837,-441.7682,0.00010959,2]
[356051444,1741855845847,-177608.67245682,0.00013496,2]
[356051445,1741855845892,-3239.8,0.00013496,2]
[356051451,1741856253852,-377.53727826,0.0001335,2]
[356051452,1741856267529,-9290.41173766,0.00012572,2]
[356051453,1741856284498,-177.3314757,0.00012571,2]
[356051454,1741856316136,-122.6685243,0.00012571,2]
[356051455,1741856316161,-27.3314757,0.00012571,2]
[356051457,1741856345395,-297.2889598,0.00012571,2]
[356051458,1741856441261,-150.0,0.00012473,2]
[356051459,1741856451797,-202.922946,0.00012457,2]
[356051460,1741856469143,-74.2652493,0.00012457,2]
[356051461,1741856469170,-128.6576967,0.00012473,2]
[356051462,1741856529178,-16.1813642,0.00012473,2]
[356051463,1741856529200,-209.54774463,0.00012571,2]
[356051464,1741856584169,-300.0,0.00012571,2]
[356051465,1741856672230,-151.0,0.00012571,2]
[356051466,1741856708196,-150.97123,0.00012571,2]
[356051467,1741856727728,-150.0,0.00012443,2]
[356051468,1741856864355,-300.97123,0.00012299,2]
[356051470,1741856886216,-189.9055107,0.00012299,2]
[356051471,1741856886241,-100.0,0.00012443,2]
[356051472,1741856886265,-4.9194073,0.00012571,2]
[356051474,1741856943008,-168.0,0.00012571,2]
[356051516,1741857032059,-10000.0,0.00012207,2]
[356051518,1741857032071,-300.0,0.0001257,2]
[356051521,1741857032081,-500.0,0.00012571,2]
[356051523,1741857032090,-168.0,0.00012571,2]
[356051525,1741857032100,-91.69112247,0.00012571,2]
[356051527,1741857032110,-447.2889598,0.00012571,2]
[356051528,1741857032126,-1924.0,0.00012571,2]
[356051529,1741857032137,-814.95761269,0.00012571,2]
[356051530,1741857032148,-814.95761269,0.00012571,2]
[356051531,1741857032158,-814.95761269,0.00012571,2]
[356051532,1741857032169,-814.95761269,0.00012571,2]
[356051533,1741857032179,-814.95761269,0.00012571,2]
[356051534,1741857032190,-814.95761269,0.00012571,2]
[356051535,1741857032201,-814.95761269,0.00012571,2]
[356051536,1741857032210,-814.95761269,0.00012571,2]
[356051537,1741857032219,-814.95761269,0.00012571,2]
[356051538,1741857032229,-814.95761269,0.00012571,2]
[356051539,1741857032239,-814.95761269,0.00012571,2]
[356051541,1741857032249,-814.95761269,0.00012571,2]
[356051543,1741857032259,-452.33006485,0.00012571,2]
[356051559,1741857037871,-362.62754784,0.00012571,2]
[356051560,1741857037881,-814.95761269,0.00012571,2]
[356051561,1741857037891,-42.16483947,0.00012571,2]
[356051567,1741857040078,-772.79277322,0.00012571,2]
[356051568,1741857040088,-814.95761269,0.00012571,2]
[356051569,1741857040098,-814.95761269,0.00012571,2]
[356051570,1741857040108,-430.4341546,0.00012571,2]
[356051571,1741857040132,-384.52345809,0.00012571,2]
[356051572,1741857040141,-43.69522864,0.00012571,2]
[356051573,1741857040508,-771.26238405,0.00012571,2]
[356051574,1741857040518,-200.56760007,0.00012571,2]
[356051575,1741857040539,-281.79173003,0.0001257,2]
[356051576,1741857040548,-614.39001262,0.00012571,2]
[356051577,1741857040558,-107.68014374,0.00012571,2]
[356051578,1741857040570,-398.076,0.00012571,2]
[356051757,1741857046934,-178.32599598,0.0001257,2]
[356051760,1741857046959,-130.87547297,0.00012571,2]
[356051761,1741857049434,-177.03134459,0.00012571,2]
[356051762,1741857096101,500.0,0.00012206,2]
[356051763,1741857096138,314.95761269,0.00012206,2]
[356051764,1741857097511,-185.04238731,0.00012206,2]
[356051765,1741857098170,-382.76503061,0.00012206,2]
[356051768,1741857123392,-300.0,0.00012205,2]
[356051769,1741857124632,-117.23496939,0.00012206,2]
[356051770,1741857124657,-382.76503061,0.00012206,2]
[356051772,1741857171291,-167.9666415,0.00012326,2]
[356051774,1741857376283,-184.62291197,0.00012305,2]
[356051779,1741857557191,-868.19661363,0.00011573,2]
[356051782,1741857667120,-198.5017184,0.00011571,2]
[356051783,1741857805194,-300.0,0.00011471,2]
[356051784,1741857805219,-411.7922,0.00011472,2]
[356051789,1741858148133,-401.63819373,0.00010506,2]
[356051790,1741858183269,259.0,0.0001147,30]
[356051819,1741858232784,-359.70120619,0.00010401,2]
[356051820,1741858232794,-329.063657,0.0001048,2]
[356051821,1741858232804,-22.96395927,0.00010506,2]
[356051822,1741858232813,-4009.6577225,0.00010667,2]
[356051823,1741858232822,-191.3132222,0.00011354,2]
[356051824,1741858232831,-500.0,0.00011469,2]
[356051825,1741858232840,-500.0,0.00011469,2]
[356051826,1741858232850,-500.0,0.00011469,2]
[356051827,1741858232859,-500.0,0.00011469,2]
[356051828,1741858232869,-500.0,0.00011469,2]
[356051829,1741858232878,-500.0,0.00011469,2]
[356051830,1741858232887,-500.0,0.00011469,2]
[356051831,1741858232897,-500.0,0.00011469,2]
[356051832,1741858232906,-500.0,0.00011469,2]
[356051833,1741858232915,-500.0,0.00011469,2]
[356051834,1741858232924,-500.0,0.00011469,2]
[356051835,1741858232933,-500.0,0.00011469,2]
[356051836,1741858232943,-500.0,0.00011469,2]
[356051837,1741858232951,-500.0,0.00011469,2]
[356051838,1741858232960,-500.0,0.00011469,2]
[356051839,1741858232969,-500.0,0.00011469,2]
[356051840,1741858232979,-500.0,0.00011469,2]
[356051841,1741858232988,-500.0,0.00011469,2]
[356051842,1741858232997,-500.0,0.00011469,2]
[356051843,1741858233006,-500.0,0.00011469,2]
[356051844,1741858233015,-500.0,0.00011469,2]
[356051845,1741858233024,-500.0,0.00011469,2]
[356051846,1741858233034,-500.0,0.00011469,2]
[356051847,1741858233043,-500.0,0.00011469,2]
[356051848,1741858233053,-500.0,0.00011469,2]
[356051849,1741858233063,-500.0,0.00011469,2]
[356051850,1741858233072,-500.0,0.00011469,2]
[356051851,1741858233081,-500.0,0.00011469,2]
[356051852,1741858233091,-500.0,0.00011469,2]
[356051853,1741858233100,-500.0,0.00011469,2]
[356051854,1741858233109,-500.0,0.00011469,2]
[356051856,1741858233119,-500.0,0.00011469,2]
[356051858,1741858233129,-499.04697984,0.00011469,2]
[356051860,1741858233138,-686.50005194,0.00011469,2]
[356051862,1741858233148,-686.50005194,0.00011469,2]
[356051864,1741858233157,-686.50005194,0.00011469,2]
[356051866,1741858233167,-686.50005194,0.00011469,2]
[356051868,1741858233177,-686.50005194,0.00011469,2]
[356051870,1741858233187,-686.50005194,0.00011469,2]
[356051872,1741858233196,-686.50005194,0.00011469,2]
[356051874,1741858233206,-686.50005194,0.00011469,2]
[356051877,1741858233216,-686.50005194,0.00011469,2]
[356051879,1741858233226,-686.50005194,0.00011469,2]
[356051881,1741858233235,-686.50005194,0.00011469,2]
[356051883,1741858233244,-686.50005194,0.00011469,2]
[356051884,1741858233255,-686.50005194,0.00011469,2]
[356051886,1741858233271,-686.50005194,0.00011469,2]
[356051889,1741858233281,-686.50005194,0.00011469,2]
[356051891,1741858233291,-686.50005194,0.00011469,2]
[356051892,1741858233300,-686.50005194,0.00011469,2]
[356051894,1741858233315,-686.50005194,0.00011469,2]
[356051897,1741858233324,-686.50005194,0.00011469,2]
[356051898,1741858233334,-686.50005194,0.00011469,2]
[356051900,1741858233343,-686.50005194,0.00011469,2]
[356051902,1741858233353,-686.50005194,0.00011469,2]
[356051904,1741858233362,-686.50005194,0.00011469,2]
[356051906,1741858233371,-686.50005194,0.00011469,2]
[356051908,1741858233380,-686.50005194,0.00011469,2]
[356051910,1741858233390,-686.50005194,0.00011469,2]
[356051912,1741858233400,-686.50005194,0.00011469,2]
[356051914,1741858233409,-686.50005194,0.00011469,2]
[356051916,1741858233418,-686.50005194,0.00011469,2]
[356051918,1741858233428,-686.50005194,0.00011469,2]
[356051920,1741858233437,-686.50005194,0.00011469,2]
[356051922,1741858233447,-686.50005194,0.00011469,2]
[356051924,1741858233457,-686.50005194,0.00011469,2]
[356051926,1741858233466,-686.50005194,0.00011469,2]
[356051928,1741858233475,-686.50005194,0.00011469,2]
[356051930,1741858233484,-686.50005194,0.00011469,2]
[356051932,1741858233492,-686.50005194,0.00011469,2]
[356051934,1741858233501,-686.50005194,0.00011469,2]
[356051936,1741858233512,-686.50005194,0.00011469,2]
[356051938,1741858233521,-654.08199394,0.00011469,2]
[356051940,1741858233530,-654.08199394,0.00011469,2]
[356051942,1741858233540,-654.08199394,0.00011469,2]
[356051944,1741858233549,-654.08199394,0.00011469,2]
[356051946,1741858233559,-654.08199394,0.00011469,2]
[356051948,1741858233571,-654.08199394,0.00011469,2]
[356051950,1741858233580,-654.08199394,0.00011469,2]
[356051952,1741858233590,-654.08199394,0.00011469,2]
[356051954,1741858233599,-654.08199394,0.00011469,2]
[356051956,1741858233608,-654.08199394,0.00011469,2]
[356051958,1741858233618,-654.08199394,0.00011469,2]
[356051959,1741858233627,-654.08199394,0.00011469,2]
[356051961,1741858233637,-654.08199394,0.00011469,2]
[356051962,1741858233648,-654.08199394,0.00011469,2]
[356051964,1741858233657,-654.08199394,0.00011469,2]
[356051966,1741858233667,-654.08199394,0.00011469,2]
[356051968,1741858233676,-654.08199394,0.00011469,2]
[356051970,1741858233686,-654.08199391,0.00011469,2]
[356051972,1741858233695,-5336.07421704,0.00011473,2]
[356051974,1741858233704,-503.09409185,0.00011509,2]
[356051976,1741858233714,-24031.80338637,0.00011573,2]
[356051978,1741858233723,-500.0,0.00012114,2]
[356051980,1741858233732,-811.64822577,0.00012283,2]
[356051982,1741858233742,-207.6587228,0.00012405,2]
[356051984,1741858233751,-599.829,0.00012571,2]
[356051986,1741858233760,-175.6588661,0.00012571,2]
[356051988,1741858233769,-168.0,0.00012579,2]
[356051990,1741858233778,-500.0,0.00012752,2]
[356051992,1741858233788,-2492.72841394,0.000129,2]
[356051994,1741858233797,-2492.72841392,0.000129,2]
[356051995,1741858233806,-2492.72841392,0.00012945,2]
[356051998,1741858233816,-800.0,0.00013289,2]
[356052000,1741858233825,-1285.8115694,0.000133,2]
[356052002,1741858233834,-349.83924928,0.00013326,2]
[356052004,1741858233844,-1285.8115694,0.00013375,2]
[356052005,1741858233852,-1000.0,0.0001339,2]
[356052007,1741858233861,-107803.34555208,0.00013398,2]
[356052015,1741858233922,-389.170668,0.00013398,2]
[356052185,1741858329857,-300.0,0.00010665,2]
[356052186,1741858336352,-260.3889252,0.00010666,2]
[356052187,1741858344115,-239.6110748,0.00010666,2]
[356052188,1741858361964,-247.9683,0.00010665,2]
[356052189,1741858383734,-300.0,0.00010664,2]
[356052190,1741858578270,-300.0,0.00010663,2]
[356052191,1741858610839,-300.0,0.00010556,2]
[356052194,1741858696181,-612.31703269,0.0001045,2]
[356052196,1741858987430,600.0,0.0001,2]
[356052199,1741859351145,-3043.22016968,0.0001013,2]
[356052265,1741859435950,-1524.12602032,0.0001013,2]
[356052266,1741859435961,-500.0,0.00010245,2]
[356052267,1741859435971,-500.0,0.00010245,2]
[356052268,1741859435981,-500.0,0.00010245,2]
[356052269,1741859435991,-500.0,0.00010245,2]
[356052270,1741859436001,-500.0,0.00010245,2]
[356052271,1741859436011,-500.0,0.00010245,2]
[356052272,1741859436021,-500.0,0.00010245,2]
[356052273,1741859436031,-493.63900626,0.00010245,2]
[356052274,1741859436040,-500.0,0.00010245,2]
[356052275,1741859436050,-500.0,0.00010245,2]
[356052276,1741859436060,-500.0,0.00010245,2]
[356052277,1741859436069,-500.0,0.00010245,2]
[356052278,1741859436079,-6092.5152425,0.00010252,2]
[356052279,1741859436089,-314.3402685,0.00010297,2]
[356052280,1741859436099,-713.40547288,0.00010563,2]
[356052281,1741859436112,-5336.07421704,0.00010563,2]
[356052282,1741859436121,-300.0,0.00010959,2]
[356052283,1741859436131,-250.28744363,0.00011847,2]
[356052284,1741859436141,-24900.0,0.00011848,2]
[356052285,1741859436152,-400.0,0.0001238,2]
[356052286,1741859436163,-1441.03137,0.00012472,2]
[356052287,1741859436172,-479.863,0.00012571,2]
[356052288,1741859436182,-2340.9149047,0.000129,2]
[356052289,1741859436192,-2340.91490467,0.00012938,2]
[356052290,1741859436202,-834.77361048,0.00013072,2]
[356052291,1741859436212,-486.26231496,0.00013212,2]
[356052292,1741859436221,-869.32231554,0.00013277,2]
[356052293,1741859436231,-1000.0,0.0001329,2]
[356052294,1741859436243,-256.3629401,0.00013298,2]
[356052330,1741859438453,-799.90801415,0.00013005,2]
[356052332,1741859438463,-26379.80097828,0.00013298,2]
[356052333,1741859438483,-501.44951117,0.00013298,2]
[356052400,1741859690134,-342.48,0.00010959,2]
[356052401,1741859912987,-3256.8206765,0.00011328,2]
[356052402,1741860362801,-1657.28486505,0.00011867,2]
[356052403,1741860397436,-377.53727826,0.00011867,2]
[356052405,1741860424073,-297.2889598,0.00011867,2]
[356052406,1741860483418,-195.7092092,0.00011967,2]
[356052407,1741860483447,-13.83853543,0.00012136,2]
[356052409,1741860544986,-161.36267512,0.00012136,2]
[356052410,1741860545012,-138.63732488,0.00012136,2]
[356052411,1741860569131,-230.67321327,0.00012136,2]
[356052412,1741860596316,-150.97123,0.00011355,2]
[356052413,1741860625225,1000.0,0.00014001,30]
[356052487,1741860640756,-300.0,0.00011354,2]
[356052488,1741860640766,-10633.1429558,0.00011355,2]
[356052489,1741860640775,-1128.45431548,0.00011694,2]
[356052490,1741860640787,-4128.13122602,0.00011694,2]
[356052491,1741860640796,-130.68946185,0.00012136,2]
[356052492,1741860640815,-141.17931213,0.00012136,2]
[356052524,1741860646604,-24.78057746,0.00012136,2]
[356052525,1741860646614,-773.36663582,0.00012137,2]
[356052526,1741860646665,-4189.58030684,0.00012137,2]
[356052527,1741860646678,-1800.0,0.00012137,2]
[356052528,1741860646801,-18137.05305734,0.00012137,2]
[356052529,1741860646811,-500.0,0.00012246,2]
[356052530,1741860646820,-420.0,0.00012473,2]
[356052531,1741860646830,-198.5017184,0.00012593,2]
[356052533,1741860646839,-500.0,0.0001289,2]
[356052535,1741860646849,-383.89,0.000129,2]
[356052537,1741860646858,-1755.68617852,0.000129,2]
[356052539,1741860646867,-1225.81611,0.00012999,2]
[356052541,1741860646877,-799.90801416,0.00013095,2]
[356052543,1741860646886,-1755.6861785,0.00013121,2]
[356052545,1741860646895,-4637.10647768,0.0001313,2]
[356052587,1741861185305,-3979.1627784,0.00012179,2]
[356052742,1741861839578,-167.18589524,0.00012973,2]